[Event "*** Titled Tuesday Blitz"]
[Site "Chess.com"]
[Date "2018.01.02"]
[Round "3"]
[White "viktorskliarov"]
[Black "djogrodek1"]
[Result "0-1"]
[WhiteElo "2426"]
[BlackElo "2447"]
[TimeControl "180+2"]
[EndTime "13:38:50 PST"]
[Termination "djogrodek1 won by resignation"]

1. e4 {[%clk 0:03:01.9]} 1... c5 {[%clk 0:02:56]} 2. Nf3 {[%clk 0:03:02.5]} 2...
d6 {[%clk 0:02:57.2]} 3. d4 {[%clk 0:03:03.6]} 3... cxd4 {[%clk 0:02:59.1]} 4.
Qxd4 {[%clk 0:03:05.3]} 4... Nf6 {[%clk 0:02:59.2]} 5. Nc3 {[%clk 0:03:06.1]}
5... Bd7 {[%clk 0:02:50.9]} 6. Bg5 {[%clk 0:03:06]} 6... Nc6 {[%clk 0:02:50]} 7.
Qd2 {[%clk 0:03:06.9]} 7... e6 {[%clk 0:02:51]} 8. O-O-O {[%clk 0:03:07.3]} 8...
Be7 {[%clk 0:02:31]} 9. Bxf6 {[%clk 0:03:06.3]} 9... gxf6 {[%clk 0:02:31.3]} 10.
Kb1 {[%clk 0:03:06.8]} 10... a6 {[%clk 0:02:29.4]} 11. Nd4 {[%clk 0:03:07.1]}
11... Rc8 {[%clk 0:02:27.4]} 12. f4 {[%clk 0:03:07.9]} 12... b5 {[%clk
0:02:26.2]} 13. f5 {[%clk 0:03:06.6]} 13... Qb6 {[%clk 0:02:23.7]} 14. Be2
{[%clk 0:02:02.8]} 14... b4 {[%clk 0:02:14.8]} 15. fxe6 {[%clk 0:01:58.5]} 15...
fxe6 {[%clk 0:02:12.2]} 16. Bh5+ {[%clk 0:01:59]} 16... Kd8 {[%clk 0:02:11.9]}
17. Nce2 {[%clk 0:01:57.8]} 17... Kc7 {[%clk 0:02:03.8]} 18. Bf7 {[%clk
0:01:41.4]} 18... e5 {[%clk 0:01:48.4]} 19. Nxc6 {[%clk 0:01:37.4]} 19... Bxc6
{[%clk 0:01:47.7]} 20. Bd5 {[%clk 0:01:34.2]} 20... a5 {[%clk 0:01:45.5]} 21.
Ng3 {[%clk 0:01:33.9]} 21... Bd7 {[%clk 0:01:16.2]} 22. Rhf1 {[%clk 0:01:32.3]}
22... Kb8 {[%clk 0:01:15.2]} 23. Nh5 {[%clk 0:00:52.8]} 23... Bg4 {[%clk
0:01:10]} 24. Nxf6 {[%clk 0:00:50.9]} 24... Bxf6 {[%clk 0:01:07.7]} 25. Rxf6
{[%clk 0:00:50.3]} 25... Bxd1 {[%clk 0:01:09.1]} 26. Qxd1 {[%clk 0:00:52.2]}
26... Rhf8 {[%clk 0:01:09.7]} 27. Re6 {[%clk 0:00:40.8]} 27... Qd4 {[%clk
0:01:04.3]} 28. Qc1 {[%clk 0:00:26.2]} 28... Rf2 {[%clk 0:01:05]} 29. Re7 {[%clk
0:00:26.9]} 29... Rcxc2 {[%clk 0:00:59.3]} 30. Rb7+ {[%clk 0:00:21.8]} 30... Kc8
{[%clk 0:01:00.3]} 31. Qxc2+ {[%clk 0:00:22.6]} 31... Rxc2 {[%clk 0:01:02.2]}
32. Kxc2 {[%clk 0:00:23.3]} 32... h5 {[%clk 0:00:51.8]} 33. Kb3 {[%clk 0:00:24]}
33... Qd3+ {[%clk 0:00:33]} 34. Ka4 {[%clk 0:00:24.5]} 34... Qc2+ {[%clk
0:00:30.8]} 35. Kxa5 {[%clk 0:00:25.2]} 35... Qxb2 {[%clk 0:00:30.9]} 36. Rxb4
{[%clk 0:00:25.2]} 36... Qxg2 {[%clk 0:00:30.2]} 37. Kb6 {[%clk 0:00:25.5]}
37... Qxh2 {[%clk 0:00:25.4]} 38. Kc6 {[%clk 0:00:24.8]} 38... Qc2+ {[%clk
0:00:21.6]} 39. Kxd6 {[%clk 0:00:21.8]} 39... Qc7+ {[%clk 0:00:20]} 40. Ke6
{[%clk 0:00:21.5]} 40... h4 {[%clk 0:00:20.5]} 41. Rc4 {[%clk 0:00:22.1]} 41...
h3 {[%clk 0:00:19.4]} 42. Rxc7+ {[%clk 0:00:15.8]} 42... Kxc7 {[%clk 0:00:21.3]}
43. Kxe5 {[%clk 0:00:17.2]} 43... h2 {[%clk 0:00:22.3]} 44. Kd4 {[%clk 0:00:18]}
44... h1=Q {[%clk 0:00:23.7]} 45. Kc5 {[%clk 0:00:19.5]} 45... Qc1+ {[%clk
0:00:24.6]} 46. Kb5 {[%clk 0:00:20.1]} 46... Kd6 {[%clk 0:00:25.8]} 47. Kb4
{[%clk 0:00:21.6]} 47... Qc5+ {[%clk 0:00:26.4]} 48. Kb3 {[%clk 0:00:23]} 48...
Ke5 {[%clk 0:00:27.9]} 49. a4 {[%clk 0:00:24.1]} 49... Kd4 {[%clk 0:00:29]} 50.
Kb2 {[%clk 0:00:25.4]} 50... Qb4+ {[%clk 0:00:29.8]} 51. Kc2 {[%clk 0:00:26.7]}
51... Qxa4+ {[%clk 0:00:31.1]} 52. Kd2 {[%clk 0:00:28.3]} 52... Qa3 {[%clk
0:00:30.3]} 53. Ke2 {[%clk 0:00:29.3]} 53... Qe3+ {[%clk 0:00:31.3]} 54. Kf1
{[%clk 0:00:30.8]} 54... Qd2 {[%clk 0:00:32.6]} 55. Kg1 {[%clk 0:00:32.2]} 55...
Ke3 {[%clk 0:00:34.1]} 56. Kh1 {[%clk 0:00:32.6]} 56... Kf3 {[%clk 0:00:35.4]}
0-1

[Event "*** Titled Tuesday Blitz"]
[Site "Chess.com"]
[Date "2018.01.02"]
[Round "3"]
[White "ViktorMatviishen"]
[Black "goingin33"]
[Result "1-0"]
[WhiteElo "2244"]
[BlackElo "2231"]
[TimeControl "180+2"]
[EndTime "13:38:52 PST"]
[Termination "ViktorMatviishen won by checkmate"]

1. d4 {[%clk 0:03:01.9]} 1... g6 {[%clk 0:02:33.8]} 2. c4 {[%clk 0:03:00.7]}
2... Bg7 {[%clk 0:02:34.3]} 3. Nc3 {[%clk 0:03:02.1]} 3... c5 {[%clk 0:02:35]}
4. Nf3 {[%clk 0:03:03.5]} 4... cxd4 {[%clk 0:02:35.3]} 5. Nxd4 {[%clk
0:03:04.9]} 5... Nc6 {[%clk 0:02:36.9]} 6. Nc2 {[%clk 0:03:03.7]} 6... Nf6
{[%clk 0:02:37.8]} 7. e4 {[%clk 0:03:04.3]} 7... O-O {[%clk 0:02:38.5]} 8. Be2
{[%clk 0:03:05.6]} 8... d6 {[%clk 0:02:36.4]} 9. O-O {[%clk 0:03:06.5]} 9... Nd7
{[%clk 0:02:35.8]} 10. Rb1 {[%clk 0:03:06]} 10... a5 {[%clk 0:02:36.8]} 11. Be3
{[%clk 0:03:03.7]} 11... Nc5 {[%clk 0:02:37.1]} 12. f3 {[%clk 0:03:02.5]} 12...
f5 {[%clk 0:02:37.9]} 13. Qd2 {[%clk 0:02:59.7]} 13... Be6 {[%clk 0:02:02.9]}
14. b3 {[%clk 0:02:51.1]} 14... f4 {[%clk 0:01:57.5]} 15. Bf2 {[%clk 0:02:49.7]}
15... g5 {[%clk 0:01:53]} 16. Nd5 {[%clk 0:02:40.3]} 16... Ne5 {[%clk
0:01:49.4]} 17. Nd4 {[%clk 0:02:40.4]} 17... Bxd5 {[%clk 0:01:50]} 18. exd5
{[%clk 0:02:39.1]} 18... Qe8 {[%clk 0:01:42]} 19. Qc2 {[%clk 0:02:28.6]} 19...
Qh5 {[%clk 0:01:38.7]} 20. Nf5 {[%clk 0:02:20.7]} 20... Bf6 {[%clk 0:01:21.8]}
21. Bxc5 {[%clk 0:02:05.1]} 21... dxc5 {[%clk 0:01:23.7]} 22. Qe4 {[%clk
0:02:06.3]} 22... Qg6 {[%clk 0:01:23.4]} 23. Rfe1 {[%clk 0:02:00.8]} 23... Rae8
{[%clk 0:01:13.8]} 24. Bd1 {[%clk 0:02:01.9]} 24... Nd7 {[%clk 0:01:13]} 25.
Qe6+ {[%clk 0:02:00.8]} 25... Kh8 {[%clk 0:01:12.1]} 26. Qxd7 {[%clk 0:02:00.8]}
26... Bc3 {[%clk 0:01:11.8]} 27. Bc2 {[%clk 0:01:51]} 27... Bxe1 {[%clk
0:01:11]} 28. Rxe1 {[%clk 0:01:52.4]} 28... Qf6 {[%clk 0:01:08.2]} 29. Qe6
{[%clk 0:01:49.1]} 29... Qc3 {[%clk 0:01:09.1]} 30. Qe5+ {[%clk 0:01:48.1]}
30... Qxe5 {[%clk 0:01:10.3]} 31. Rxe5 {[%clk 0:01:49.7]} 31... a4 {[%clk
0:01:10.2]} 32. bxa4 {[%clk 0:01:49.6]} 32... e6 {[%clk 0:01:03]} 33. dxe6
{[%clk 0:01:49.7]} 33... Rf6 {[%clk 0:01:02.3]} 34. Nd6 {[%clk 0:01:47.1]} 34...
Rexe6 {[%clk 0:01:02.3]} 35. Rxe6 {[%clk 0:01:32.1]} 35... Rxe6 {[%clk
0:01:04.2]} 36. Ne4 {[%clk 0:01:33.3]} 36... Re5 {[%clk 0:00:59.8]} 37. Kf2
{[%clk 0:01:31.4]} 37... b6 {[%clk 0:01:00.8]} 38. Ke2 {[%clk 0:01:29.3]} 38...
h6 {[%clk 0:01:02.1]} 39. Kd3 {[%clk 0:01:30.2]} 39... Kg8 {[%clk 0:01:03.2]}
40. Kc3 {[%clk 0:01:31.2]} 40... Kf8 {[%clk 0:01:02.1]} 41. Kb3 {[%clk
0:01:32.4]} 41... Re6 {[%clk 0:00:56.6]} 42. a5 {[%clk 0:01:31.2]} 42... bxa5
{[%clk 0:00:54.1]} 43. Ka4 {[%clk 0:01:27.2]} 43... Rb6 {[%clk 0:00:52.1]} 44.
Bb3 {[%clk 0:01:27.5]} 44... g4 {[%clk 0:00:44.4]} 45. Kxa5 {[%clk 0:01:26.7]}
45... gxf3 {[%clk 0:00:42.3]} 46. gxf3 {[%clk 0:01:27]} 46... Rg6 {[%clk
0:00:40.6]} 47. Nxc5 {[%clk 0:01:25.5]} 47... Rg2 {[%clk 0:00:38.3]} 48. Kb6
{[%clk 0:01:20]} 48... Rxh2 {[%clk 0:00:38.3]} 49. a4 {[%clk 0:01:21.7]} 49...
h5 {[%clk 0:00:36.4]} 50. a5 {[%clk 0:01:23.1]} 50... Rg2 {[%clk 0:00:35.9]} 51.
a6 {[%clk 0:01:14.8]} 51... Rg6+ {[%clk 0:00:36.5]} 52. Kc7 {[%clk 0:01:16.1]}
52... Rg7+ {[%clk 0:00:16.8]} 53. Kd6 {[%clk 0:01:02.8]} 53... h4 {[%clk
0:00:17.4]} 54. Ne6+ {[%clk 0:01:01.4]} 54... Kf7 {[%clk 0:00:18.7]} 55. Nxg7
{[%clk 0:01:02.7]} 55... h3 {[%clk 0:00:19.1]} 56. a7 {[%clk 0:01:01.6]} 56...
h2 {[%clk 0:00:20.6]} 57. a8=Q {[%clk 0:01:02.3]} 57... h1=Q {[%clk 0:00:22.1]}
58. Nf5 {[%clk 0:00:57.7]} 58... Qb1 {[%clk 0:00:22]} 59. Qd5+ {[%clk
0:00:57.5]} 59... Kg6 {[%clk 0:00:22.8]} 60. Qe6+ {[%clk 0:00:57]} 60... Kg5
{[%clk 0:00:23.6]} 61. Qe7+ {[%clk 0:00:57.9]} 61... Kxf5 {[%clk 0:00:24.7]} 62.
Qh7+ {[%clk 0:00:58.7]} 62... Kg5 {[%clk 0:00:25.6]} 63. Qxb1 {[%clk 0:00:59.5]}
63... Kh5 {[%clk 0:00:27.5]} 64. Qf5+ {[%clk 0:00:59.6]} 64... Kh4 {[%clk
0:00:29.4]} 65. Qg4# {[%clk 0:01:00.8]} 1-0

[Event "*** Titled Tuesday Blitz"]
[Site "Chess.com"]
[Date "2018.01.02"]
[Round "3"]
[White "MateusViageiro"]
[Black "Hanging_pointer"]
[Result "1-0"]
[WhiteElo "2176"]
[BlackElo "2230"]
[TimeControl "180+2"]
[EndTime "13:38:53 PST"]
[Termination "MateusViageiro won by resignation"]

1. e4 {[%clk 0:03:01.9]} 1... c5 {[%clk 0:02:59.4]} 2. Nf3 {[%clk 0:02:48.2]}
2... e6 {[%clk 0:02:57.3]} 3. g3 {[%clk 0:02:44.3]} 3... Nc6 {[%clk 0:02:55.2]}
4. Bg2 {[%clk 0:02:43.6]} 4... a6 {[%clk 0:02:55.2]} 5. O-O {[%clk 0:02:43.2]}
5... Nf6 {[%clk 0:02:53]} 6. Re1 {[%clk 0:02:40.9]} 6... d6 {[%clk 0:02:50.6]}
7. d4 {[%clk 0:02:40.1]} 7... cxd4 {[%clk 0:02:52.3]} 8. Nxd4 {[%clk 0:02:39.5]}
8... Bd7 {[%clk 0:02:52.8]} 9. c4 {[%clk 0:02:38.4]} 9... Qc7 {[%clk 0:02:50.7]}
10. b3 {[%clk 0:02:36.8]} 10... Be7 {[%clk 0:02:45.2]} 11. Ba3 {[%clk
0:02:29.3]} 11... Nxd4 {[%clk 0:02:38.3]} 12. Qxd4 {[%clk 0:02:18.1]} 12... Bc6
{[%clk 0:02:38.7]} 13. Nc3 {[%clk 0:02:16.6]} 13... O-O {[%clk 0:02:27.8]} 14.
Rac1 {[%clk 0:02:12.8]} 14... Qb8 {[%clk 0:01:53.3]} 15. Nd5 {[%clk 0:02:03.6]}
15... Nxd5 {[%clk 0:01:40.6]} 16. exd5 {[%clk 0:02:03.7]} 16... e5 {[%clk
0:01:39.9]} 17. Qd3 {[%clk 0:01:50]} 17... Bd7 {[%clk 0:01:39.8]} 18. f4 {[%clk
0:01:38.4]} 18... f6 {[%clk 0:01:27.6]} 19. fxe5 {[%clk 0:01:25.4]} 19... fxe5
{[%clk 0:01:27.6]} 20. Rxe5 {[%clk 0:01:25.7]} 20... dxe5 {[%clk 0:01:21.6]} 21.
Bxe7 {[%clk 0:01:26]} 21... Bf5 {[%clk 0:01:06.1]} 22. Qe3 {[%clk 0:01:19.2]}
22... Re8 {[%clk 0:00:31.3]} 23. d6 {[%clk 0:01:19.4]} 23... e4 {[%clk
0:00:32.4]} 24. Qc5 {[%clk 0:01:10.8]} 24... Qc8 {[%clk 0:00:31.5]} 25. Qd4
{[%clk 0:01:07.9]} 25... Qd7 {[%clk 0:00:26.3]} 26. Qc5 {[%clk 0:00:55.4]} 26...
Rac8 {[%clk 0:00:25.2]} 27. Qd5+ {[%clk 0:00:52.7]} 27... Kh8 {[%clk 0:00:16.6]}
28. Rf1 {[%clk 0:00:45.2]} 28... Bg6 {[%clk 0:00:12.8]} 29. Qe5 {[%clk
0:00:37.7]} 29... b5 {[%clk 0:00:06.4]} 30. c5 {[%clk 0:00:35.9]} 30... a5
{[%clk 0:00:03.4]} 31. h4 {[%clk 0:00:32]} 31... h6 {[%clk 0:00:03.5]} 32. Kh2
{[%clk 0:00:30.9]} 32... Rxe7 {[%clk 0:00:04.4]} 33. dxe7 {[%clk 0:00:29.4]}
33... Re8 {[%clk 0:00:04.9]} 34. Rf8+ {[%clk 0:00:26.1]} 34... Kh7 {[%clk
0:00:05.8]} 35. Rxe8 {[%clk 0:00:24.6]} 35... Qxe8 {[%clk 0:00:07.6]} 36. Bxe4
{[%clk 0:00:24.4]} 36... Bxe4 {[%clk 0:00:07.1]} 37. Qxe4+ {[%clk 0:00:25]}
37... Kg8 {[%clk 0:00:08.9]} 38. Qd5+ {[%clk 0:00:22.8]} 38... Kh7 {[%clk
0:00:09]} 39. Qf5+ {[%clk 0:00:20.5]} 39... Kg8 {[%clk 0:00:09.2]} 40. Qe6+
{[%clk 0:00:20.8]} 40... Kh7 {[%clk 0:00:09.9]} 41. Qe4+ {[%clk 0:00:20.6]}
41... Kg8 {[%clk 0:00:10.5]} 42. c6 {[%clk 0:00:21.4]} 42... Kf7 {[%clk
0:00:09.5]} 43. c7 {[%clk 0:00:21.7]} 43... a4 {[%clk 0:00:09.3]} 44. bxa4
{[%clk 0:00:21.2]} 44... bxa4 {[%clk 0:00:11]} 45. Qd5+ {[%clk 0:00:21.6]} 45...
Kf6 {[%clk 0:00:10.2]} 46. Qd8 {[%clk 0:00:21.9]} 46... Qb5 {[%clk 0:00:09.4]}
47. e8=Q+ {[%clk 0:00:22.6]} 1-0

[Event "*** Titled Tuesday Blitz"]
[Site "Chess.com"]
[Date "2018.01.02"]
[Round "3"]
[White "Summer-Paradise"]
[Black "Divertissement"]
[Result "0-1"]
[WhiteElo "2520"]
[BlackElo "2435"]
[TimeControl "180+2"]
[EndTime "13:38:58 PST"]
[Termination "Divertissement won by resignation"]

1. d4 {[%clk 0:03:01.5]} 1... e6 {[%clk 0:02:58.6]} 2. c4 {[%clk 0:03:02.6]}
2... Nf6 {[%clk 0:02:59]} 3. Nf3 {[%clk 0:03:03.9]} 3... d5 {[%clk 0:02:59.8]}
4. Nc3 {[%clk 0:03:05]} 4... Be7 {[%clk 0:02:55.9]} 5. Bg5 {[%clk 0:03:06]} 5...
h6 {[%clk 0:02:55.5]} 6. Bh4 {[%clk 0:03:06.2]} 6... O-O {[%clk 0:02:56]} 7. e3
{[%clk 0:03:07.6]} 7... b6 {[%clk 0:02:44.7]} 8. Be2 {[%clk 0:03:07.4]} 8... Bb7
{[%clk 0:02:44.6]} 9. Bxf6 {[%clk 0:03:08.6]} 9... Bxf6 {[%clk 0:02:44.8]} 10.
cxd5 {[%clk 0:03:10.2]} 10... exd5 {[%clk 0:02:45.5]} 11. b4 {[%clk 0:03:11.6]}
11... a6 {[%clk 0:02:34.7]} 12. O-O {[%clk 0:03:11.5]} 12... Be7 {[%clk
0:02:20.7]} 13. Qb3 {[%clk 0:03:12]} 13... c6 {[%clk 0:02:16.6]} 14. a4 {[%clk
0:03:11.3]} 14... Bd6 {[%clk 0:02:12.6]} 15. Rfd1 {[%clk 0:03:04.4]} 15... Nd7
{[%clk 0:02:12.7]} 16. b5 {[%clk 0:03:02.3]} 16... Nf6 {[%clk 0:01:52.7]} 17.
bxc6 {[%clk 0:02:54.7]} 17... Bxc6 {[%clk 0:01:53.9]} 18. Rab1 {[%clk
0:02:50.5]} 18... Bc7 {[%clk 0:01:53.8]} 19. Rdc1 {[%clk 0:02:51.8]} 19... Qd6
{[%clk 0:01:32.9]} 20. g3 {[%clk 0:02:40.7]} 20... Ne4 {[%clk 0:01:28.8]} 21.
Ne5 {[%clk 0:02:35.8]} 21... Nd2 {[%clk 0:01:21]} 22. Qc2 {[%clk 0:02:32.7]}
22... Nc4 {[%clk 0:00:39.1]} 23. Nxc4 {[%clk 0:02:19.9]} 23... dxc4 {[%clk
0:00:41]} 24. Bxc4 {[%clk 0:02:21.6]} 24... Bb7 {[%clk 0:00:29.7]} 25. Bd3
{[%clk 0:02:20.1]} 25... Rac8 {[%clk 0:00:28.5]} 26. Be4 {[%clk 0:02:20.6]}
26... Bxe4 {[%clk 0:00:27.1]} 27. Qxe4 {[%clk 0:02:19.1]} 27... Rfe8 {[%clk
0:00:24.2]} 28. Qd5 {[%clk 0:02:11.1]} 28... Qg6 {[%clk 0:00:21]} 29. Ne2 {[%clk
0:02:04.1]} 29... Rcd8 {[%clk 0:00:18.8]} 30. Qc6 {[%clk 0:02:00.5]} 30... Bd6
{[%clk 0:00:11]} 31. Rxb6 {[%clk 0:01:49.3]} 31... Qg4 {[%clk 0:00:11.6]} 32.
Qc2 {[%clk 0:01:40.6]} 32... h5 {[%clk 0:00:10.1]} 33. Kg2 {[%clk 0:01:22.7]}
33... h4 {[%clk 0:00:11.3]} 34. h3 {[%clk 0:01:23.1]} 34... Qg5 {[%clk
0:00:12.8]} 35. g4 {[%clk 0:01:21.1]} 35... Qd5+ {[%clk 0:00:14.3]} 36. Kg1
{[%clk 0:01:21.7]} 36... Qf3 {[%clk 0:00:15]} 37. Rxd6 {[%clk 0:01:08.2]} 37...
Rxd6 {[%clk 0:00:16.9]} 38. Nf4 {[%clk 0:01:09.8]} 38... Rf6 {[%clk 0:00:12.1]}
39. Qc5 {[%clk 0:00:52.8]} 39... Rxe3 {[%clk 0:00:08.2]} 40. fxe3 {[%clk
0:00:45.5]} 40... Qxe3+ {[%clk 0:00:08.9]} 41. Kh1 {[%clk 0:00:46.7]} 41... Rxf4
{[%clk 0:00:08.2]} 42. Qc3 {[%clk 0:00:29.6]} 42... Qe4+ {[%clk 0:00:06.9]} 43.
Kg1 {[%clk 0:00:29.5]} 43... Rf3 {[%clk 0:00:08.2]} 44. Qc8+ {[%clk 0:00:27.9]}
44... Kh7 {[%clk 0:00:09.7]} 45. Qc2 {[%clk 0:00:29.1]} 45... Rd3 {[%clk
0:00:11.3]} 46. Rf1 {[%clk 0:00:23.3]} 46... Qxd4+ {[%clk 0:00:11.2]} 47. Rf2
{[%clk 0:00:18.4]} 47... Qe4 {[%clk 0:00:10.8]} 48. Re2 {[%clk 0:00:14.2]} 48...
Rg3+ {[%clk 0:00:12.1]} 49. Kf2 {[%clk 0:00:15]} 49... Rg2+ {[%clk 0:00:11.9]}
50. Kf1 {[%clk 0:00:13.8]} 50... Qxc2 {[%clk 0:00:13.5]} 0-1

[Event "*** Titled Tuesday Blitz"]
[Site "Chess.com"]
[Date "2018.01.02"]
[Round "3"]
[White "DrZeiss"]
[Black "51616516516"]
[Result "0-1"]
[WhiteElo "2150"]
[BlackElo "2061"]
[TimeControl "180+2"]
[EndTime "13:38:58 PST"]
[Termination "51616516516 won by resignation"]

1. e4 {[%clk 0:03:01.9]} 1... c5 {[%clk 0:02:59.1]} 2. Nf3 {[%clk 0:03:02.2]}
2... g6 {[%clk 0:03:00.3]} 3. d4 {[%clk 0:03:02.6]} 3... cxd4 {[%clk 0:03:01.2]}
4. Nxd4 {[%clk 0:03:03.5]} 4... Nc6 {[%clk 0:03:02.4]} 5. Nc3 {[%clk 0:03:02.5]}
5... Bg7 {[%clk 0:03:03]} 6. Nde2 {[%clk 0:03:03.1]} 6... Nf6 {[%clk 0:03:03.2]}
7. g3 {[%clk 0:02:55.7]} 7... b5 {[%clk 0:03:03.8]} 8. Bg2 {[%clk 0:02:52.3]}
8... Rb8 {[%clk 0:03:00.9]} 9. O-O {[%clk 0:02:50.4]} 9... O-O {[%clk
0:03:01.2]} 10. h3 {[%clk 0:02:40.5]} 10... d6 {[%clk 0:02:59.5]} 11. Be3 {[%clk
0:02:36.4]} 11... a5 {[%clk 0:02:56.6]} 12. Nd5 {[%clk 0:02:34.9]} 12... Be6
{[%clk 0:02:48.6]} 13. b3 {[%clk 0:02:19.9]} 13... b4 {[%clk 0:02:48.5]} 14. Rc1
{[%clk 0:02:18.3]} 14... Nd7 {[%clk 0:02:38.4]} 15. Qd2 {[%clk 0:02:15.5]} 15...
Nc5 {[%clk 0:02:21.2]} 16. Bh6 {[%clk 0:02:07]} 16... Ne5 {[%clk 0:01:59.9]} 17.
Nd4 {[%clk 0:01:55.5]} 17... Bd7 {[%clk 0:01:25.5]} 18. Bxg7 {[%clk 0:01:48.8]}
18... Kxg7 {[%clk 0:01:27.4]} 19. f4 {[%clk 0:01:40.5]} 19... Nc6 {[%clk
0:01:24.6]} 20. c4 {[%clk 0:01:33]} 20... Kg8 {[%clk 0:01:13.6]} 21. Rcd1 {[%clk
0:01:22.4]} 21... Nxd4 {[%clk 0:01:14.6]} 22. Qxd4 {[%clk 0:01:21.7]} 22... Bc6
{[%clk 0:01:12.2]} 23. f5 {[%clk 0:01:18.8]} 23... Bxd5 {[%clk 0:01:11.2]} 24.
Qxd5 {[%clk 0:01:09.2]} 24... Nd7 {[%clk 0:01:04.3]} 25. g4 {[%clk 0:00:52.2]}
25... Rc8 {[%clk 0:01:02.9]} 26. Qd2 {[%clk 0:00:46]} 26... Ne5 {[%clk
0:01:02.6]} 27. Qh6 {[%clk 0:00:45.3]} 27... Qb6+ {[%clk 0:00:43.6]} 28. Kh1
{[%clk 0:00:45.4]} 28... f6 {[%clk 0:00:44.4]} 29. Rd5 {[%clk 0:00:45.2]} 29...
g5 {[%clk 0:00:41.6]} 30. Rb5 {[%clk 0:00:37.3]} 30... Qe3 {[%clk 0:00:35.9]}
31. Rxa5 {[%clk 0:00:30.4]} 31... Ra8 {[%clk 0:00:36.9]} 32. Rb5 {[%clk
0:00:15.6]} 32... Rxa2 {[%clk 0:00:36.6]} 33. Rb7 {[%clk 0:00:16.6]} 33... Re8
{[%clk 0:00:07.8]} 34. Qh5 {[%clk 0:00:16.4]} 34... Nf7 {[%clk 0:00:06.2]} 35.
c5 {[%clk 0:00:14.2]} 35... Rxg2 {[%clk 0:00:06]} 36. Kxg2 {[%clk 0:00:14.4]}
36... Qxe4+ {[%clk 0:00:06.9]} 37. Rf3 {[%clk 0:00:15.5]} 37... Qxb7 {[%clk
0:00:07.8]} 38. h4 {[%clk 0:00:16.8]} 38... dxc5 {[%clk 0:00:05.3]} 39. Kf2
{[%clk 0:00:15.6]} 39... Rd8 {[%clk 0:00:04.6]} 40. Re3 {[%clk 0:00:13.6]} 40...
c4 {[%clk 0:00:03.9]} 41. bxc4 {[%clk 0:00:13.3]} 41... b3 {[%clk 0:00:05.7]}
42. hxg5 {[%clk 0:00:14.4]} 42... Nxg5 {[%clk 0:00:05.8]} 43. Qh1 {[%clk
0:00:13.7]} 43... Qxh1 {[%clk 0:00:05.6]} 44. Rxb3 {[%clk 0:00:12.2]} 44... Rd2+
{[%clk 0:00:05.7]} 45. Ke3 {[%clk 0:00:12.6]} 45... Rh2 {[%clk 0:00:06.5]} 46.
Rb8+ {[%clk 0:00:12.6]} 46... Kf7 {[%clk 0:00:08.4]} 47. Rf8+ {[%clk 0:00:13.2]}
47... Kxf8 {[%clk 0:00:08.9]} 0-1